[Event "Nordstansblixten 2025"]
[Site "Nordstan, Göteborg, Sweden"]
[Date "2025.05.10"]
[Round "7.1"]
[White "Karlsson, Stefan"]
[Black "Olivius, Sten"]
[Result "1-0"]
[TimeControl "3 minutes + 2 seconds per move from move one"]
[WhiteFideId "1771183"]
[BlackFideId "1788728"]
[WhiteElo "2128"]
[BlackElo "1874"]

1. d3 {[%clk 00:03:00]} {[%emt 00:00:03]} d5 {[%clk 00:02:59]} {[%emt
00:00:06]} 2. Nd2 {[%clk 00:03:01]} e5 {[%clk 00:02:59]} {[%emt 00:00:02]} 3.
Ngf3 {[%clk 00:03:01]} {[%emt 00:00:02]} Nc6 {[%clk 00:02:58]} {[%emt
00:00:02]} 4. e4 {[%clk 00:03:02]} {[%emt 00:00:01]} Nf6 {[%clk 00:02:57]}
{[%emt 00:00:03]} 5. Be2 {[%clk 00:03:02]} {[%emt 00:00:01]} Bc5 {[%clk
00:02:51]} {[%emt 00:00:09]} 6. O-O {[%clk 00:02:54]} {[%emt 00:00:10]} O-O
{[%clk 00:02:48]} {[%emt 00:00:05]} 7. c3 {[%clk 00:02:43]} {[%emt 00:00:12]}
dxe4 {[%clk 00:02:44]} {[%emt 00:00:07]} 8. dxe4 {[%clk 00:02:43]} {[%emt
00:00:03]} Re8 {[%clk 00:02:31]} {[%emt 00:00:15]} 9. Bc4 {[%clk 00:02:17]}
{[%emt 00:00:27]} Be6 {[%clk 00:02:24]} {[%emt 00:00:09]} 10. Bb5 {[%clk
00:02:17]} {[%emt 00:00:02]} Bg4 {[%clk 00:02:16]} {[%emt 00:00:10]} 11. h3
{[%clk 00:02:14]} {[%emt 00:00:06]} Bh5 {[%clk 00:02:13]} {[%emt 00:00:04]} 12.
Qa4 {[%clk 00:02:04]} {[%emt 00:00:12]} Qd7 {[%clk 00:01:56]} {[%emt 00:00:19]}
13. Rd1 {[%clk 00:01:42]} {[%emt 00:00:25]} a6 {[%clk 00:01:54]} {[%emt
00:00:05]} 14. Be2 {[%clk 00:01:32]} {[%emt 00:00:11]} Qe7 {[%clk 00:01:43]}
{[%emt 00:00:13]} 15. b4 {[%clk 00:01:26]} {[%emt 00:00:08]} Bb6 {[%clk
00:01:35]} {[%emt 00:00:11]} 16. Ba3 {[%clk 00:01:24]} {[%emt 00:00:04]} Qe6
{[%clk 00:01:02]} {[%emt 00:00:35]} 17. Bc4 {[%clk 00:01:20]} {[%emt 00:00:05]}
Qc8 {[%clk 00:01:02]} {[%emt 00:00:02]} 18. Re1 {[%clk 00:01:13]} {[%emt
00:00:09]} h6 {[%clk 00:00:42]} {[%emt 00:00:22]} 19. Qb3 {[%clk 00:00:50]}
{[%emt 00:00:26]} a5 {[%clk 00:00:30]} {[%emt 00:00:14]} 20. Nf1 {[%clk
00:00:34]} {[%emt 00:00:18]} a4 {[%clk 00:00:26]} {[%emt 00:00:06]} 21. Qc2
{[%clk 00:00:32]} {[%emt 00:00:04]} Bxf3 {[%clk 00:00:24]} {[%emt 00:00:04]} 22.
gxf3 {[%clk 00:00:33]} Qxh3 {[%clk 00:00:22]} {[%emt 00:00:04]} 23. Qe2 {[%clk
00:00:20]} {[%emt 00:00:16]} Nh5 {[%clk 00:00:21]} {[%emt 00:00:04]} 24. Bc1
{[%clk 00:00:22]} Rad8 {[%clk 00:00:13]} {[%emt 00:00:10]} 25. Be3 {[%clk
00:00:23]} Bxe3 {[%clk 00:00:13]} {[%emt 00:00:02]} 26. fxe3 {[%clk 00:00:21]}
{[%emt 00:00:03]} Ng3 {[%clk 00:00:14]} {[%emt 00:00:01]} 27. Qg2 {[%clk
00:00:20]} {[%emt 00:00:02]} Qxg2+ {[%clk 00:00:14]} {[%emt 00:00:02]} 28. Kxg2
{[%clk 00:00:21]} Nxf1 {[%clk 00:00:15]} {[%emt 00:00:02]} 29. Kxf1 {[%clk
00:00:20]} {[%emt 00:00:03]} Rd2 {[%clk 00:00:14]} {[%emt 00:00:04]} 30. Bb5
{[%clk 00:00:16]} {[%emt 00:00:05]} Red8 {[%clk 00:00:15]} {[%emt 00:00:01]} 31.
Bxa4 {[%clk 00:00:14]} {[%emt 00:00:04]} R2d3 {[%clk 00:00:14]} {[%emt
00:00:03]} 32. Rad1 {[%clk 00:00:13]} {[%emt 00:00:03]} Rxd1 {[%clk 00:00:13]}
{[%emt 00:00:03]} 33. Rxd1 {[%clk 00:00:14]} Rxd1+ {[%clk 00:00:14]} {[%emt
00:00:01]} 34. Bxd1 {[%clk 00:00:15]} Kf8 {[%clk 00:00:16]} 35. Ke2 {[%clk
00:00:14]} {[%emt 00:00:03]} Ke7 {[%clk 00:00:17]} 36. Kd3 {[%clk 00:00:10]}
{[%emt 00:00:05]} Kd6 {[%clk 00:00:18]} 37. f4 {[%clk 00:00:11]} {[%emt
00:00:02]} f6 {[%clk 00:00:19]} 38. a4 {[%clk 00:00:08]} {[%emt 00:00:05]} Ne7
{[%clk 00:00:16]} {[%emt 00:00:04]} 39. Bh5 {[%clk 00:00:06]} {[%emt 00:00:04]}
g6 {[%clk 00:00:15]} {[%emt 00:00:03]} 40. Bd1 {[%clk 00:00:06]} {[%emt
00:00:02]} f5 {[%clk 00:00:15]} {[%emt 00:00:02]} 41. a5 {[%clk 00:00:05]}
{[%emt 00:00:03]} exf4 42. exf4 {[%clk 00:00:06]} fxe4+ {[%clk 00:00:15]}
{[%emt 00:00:02]} 43. Kxe4 {[%clk 00:00:07]} {[%emt 00:00:01]} Nd5 {[%clk
00:00:15]} {[%emt 00:00:02]} 44. Bc2 {[%clk 00:00:03]} {[%emt 00:00:06]} c6
{[%clk 00:00:12]} {[%emt 00:00:05]} 45. Kd4 {[%clk 00:00:03]} {[%emt 00:00:02]}
Ne7 {[%clk 00:00:11]} {[%emt 00:00:04]} 46. c4 {[%clk 00:00:03]} {[%emt
00:00:02]} Nf5+ {[%clk 00:00:09]} {[%emt 00:00:03]} 47. Bxf5 {[%clk 00:00:04]}
{[%emt 00:00:01]} gxf5 {[%clk 00:00:11]} 48. b5 {[%clk 00:00:05]} cxb5 {[%clk
00:00:12]} {[%emt 00:00:01]} 49. cxb5 {[%clk 00:00:06]} h5 {[%emt 00:00:01]} 50.
a6 {[%clk 00:00:06]} bxa6 {[%clk 00:00:14]} 51. bxa6 {[%clk 00:00:08]} Kc6
{[%emt 00:00:02]} 52. Ke3 {[%clk 00:00:06]} {[%emt 00:00:02]} Kb6 {[%clk
00:00:17]} 53. Kf3 {[%clk 00:00:08]} Kxa6 {[%clk 00:00:18]} 54. Kg3 {[%clk
00:00:09]} Kb5 {[%clk 00:00:20]} 55. Kh4 {[%clk 00:00:10]} Kc4 {[%clk
00:00:21]} 56. Kxh5 {[%clk 00:00:11]} Kd4 {[%clk 00:00:22]} 57. Kg6 {[%clk
00:00:11]} {[%emt 00:00:02]} Ke4 {[%clk 00:00:18]} {[%emt 00:00:06]} 58. Kg5
{[%clk 00:00:12]} Kd5 {[%clk 00:00:18]} {[%emt 00:00:02]} 59. Kxf5 {[%clk
00:00:13]} Kd6 {[%clk 00:00:19]} 60. Kf6 {[%clk 00:00:14]} {[%emt 00:00:02]}
Kd7 {[%clk 00:00:21]} 61. f5 {[%clk 00:00:12]} {[%emt 00:00:03]} Ke8 {[%clk
00:00:22]} 62. Kg7 {[%clk 00:00:14]} Ke7 {[%clk 00:00:24]} 63. f6+ {[%clk
00:00:15]} {[%emt 00:00:01]} 1-0

[Event "Nordstansblixten 2025"]
[Site "Nordstan, Göteborg, Sweden"]
[Date "2025.05.10"]
[Round "7.2"]
[White "Torres, Lucas"]
[Black "Wellevit, Tomas"]
[Result "0-1"]
[TimeControl "3 minutes + 2 seconds per move from move one"]
[WhiteFideId "1769464"]
[BlackFideId "1731963"]
[WhiteElo "1805"]
[BlackElo "2131"]

1. e4 {[%clk 00:03:03]} c5 {[%clk 00:03:04]} 2. Nc3 {[%clk 00:03:03]} {[%emt
00:00:02]} Nc6 {[%clk 00:03:05]} 3. Bb5 {[%clk 00:03:04]} {[%emt 00:00:01]} Nd4
{[%clk 00:03:06]} 4. Nf3 {[%clk 00:03:05]} Nxb5 {[%clk 00:03:08]} 5. Nxb5
{[%clk 00:03:06]} e6 {[%clk 00:03:09]} {[%emt 00:00:01]} 6. O-O {[%clk
00:02:59]} {[%emt 00:00:09]} a6 {[%clk 00:03:09]} {[%emt 00:00:02]} 7. Nc3
{[%clk 00:03:00]} Nf6 {[%clk 00:03:09]} {[%emt 00:00:02]} 8. d4 {[%clk
00:02:55]} {[%emt 00:00:07]} cxd4 {[%clk 00:03:09]} {[%emt 00:00:02]} 9. Qxd4
{[%clk 00:02:48]} {[%emt 00:00:08]} Qc7 {[%clk 00:03:08]} {[%emt 00:00:05]} 10.
Bg5 {[%clk 00:02:41]} {[%emt 00:00:07]} Bc5 {[%clk 00:03:06]} {[%emt 00:00:05]}
11. Qd2 {[%clk 00:02:41]} {[%emt 00:00:02]} b5 {[%clk 00:03:02]} {[%emt
00:00:07]} 12. e5 {[%clk 00:02:03]} {[%emt 00:00:40]} b4 {[%clk 00:02:48]}
{[%emt 00:00:16]} 13. exf6 {[%clk 00:01:59]} {[%emt 00:00:07]} bxc3 {[%clk
00:02:48]} {[%emt 00:00:02]} 14. Qxc3 {[%clk 00:01:56]} {[%emt 00:00:04]} gxf6
{[%clk 00:02:33]} {[%emt 00:00:17]} 15. Qxf6 {[%clk 00:01:52]} {[%emt
00:00:06]} Rg8 {[%clk 00:02:33]} {[%emt 00:00:02]} 16. Ne5 {[%clk 00:01:31]}
{[%emt 00:00:23]} d6 {[%clk 00:02:25]} {[%emt 00:00:10]} 17. Nxf7 {[%emt
00:00:12]} Rf8 {[%clk 00:02:07]} {[%emt 00:00:19]} 18. Nxd6+ {[%clk 00:00:51]}
{[%emt 00:00:34]} Bxd6 {[%clk 00:02:00]} {[%emt 00:00:08]} 19. Qh6 {[%clk
00:00:52]} Rg8 {[%clk 00:01:47]} {[%emt 00:00:16]} 20. Rad1 {[%clk 00:00:41]}
{[%emt 00:00:12]} Rg6 {[%clk 00:01:37]} {[%emt 00:00:12]} 21. Qh5 {[%clk
00:00:32]} {[%emt 00:00:11]} Bb7 {[%clk 00:01:38]} {[%emt 00:00:01]} 22. Rfe1
{[%clk 00:00:27]} {[%emt 00:00:08]} Kf8 {[%clk 00:01:28]} {[%emt 00:00:12]} 23.
Rd3 {[%clk 00:00:18]} {[%emt 00:00:10]} Kg8 {[%clk 00:01:25]} {[%emt 00:00:06]}
24. Rh3 {[%clk 00:00:16]} {[%emt 00:00:04]} Rf8 {[%clk 00:01:16]} {[%emt
00:00:11]} 25. f3 {[%clk 00:00:15]} {[%emt 00:00:03]} Rf5 {[%clk 00:01:13]}
{[%emt 00:00:06]} 26. f4 {[%clk 00:00:09]} {[%emt 00:00:07]} Bxf4 {[%clk
00:01:11]} {[%emt 00:00:04]} 27. Qe2 {[%clk 00:00:07]} {[%emt 00:00:04]} Rfxg5
{[%clk 00:01:06]} {[%emt 00:00:08]} 28. g3 {[%clk 00:00:07]} {[%emt 00:00:02]}
Qc5+ {[%clk 00:01:05]} {[%emt 00:00:03]} 29. Kf1 {[%clk 00:00:07]} {[%emt
00:00:03]} Re5 {[%clk 00:00:51]} {[%emt 00:00:16]} 30. Qd3 {[%clk 00:00:05]}
{[%emt 00:00:03]} Rxe1+ {[%clk 00:00:51]} {[%emt 00:00:02]} 31. Kxe1 {[%clk
00:00:06]} Qg1+ {[%clk 00:00:52]} {[%emt 00:00:01]} 32. Ke2 {[%clk 00:00:07]}
{[%emt 00:00:02]} Qg2+ {[%clk 00:00:52]} {[%emt 00:00:02]} 33. Kd1 {[%clk
00:00:05]} {[%emt 00:00:02]} Bf3+ {[%clk 00:00:53]} {[%emt 00:00:02]} 34. Ke1
{[%clk 00:00:05]} {[%emt 00:00:02]} Qg1+ {[%clk 00:00:46]} {[%emt 00:00:09]} 35.
Qf1 {[%clk 00:00:05]} {[%emt 00:00:03]} Bd2+ {[%clk 00:00:47]} 36. Kxd2 {[%clk
00:00:04]} {[%emt 00:00:02]} Qxf1 {[%clk 00:00:49]} 0-1

[Event "Nordstansblixten 2025"]
[Site "Nordstan, Göteborg, Sweden"]
[Date "2025.05.10"]
[Round "7.3"]
[White "Buzleta, Patrik"]
[Black "Bergdahl, Daniel"]
[Result "0-1"]
[TimeControl "3 minutes + 2 seconds per move from move one"]
[WhiteFideId "1755463"]
[BlackFideId "1780921"]
[WhiteElo "1950"]
[BlackElo "1855"]

1. Nf3 {[%clk 00:03:03]} Nf6 {[%clk 00:03:02]} {[%emt 00:00:02]} 2. b3 {[%clk
00:03:05]} {[%emt 00:00:01]} g6 {[%clk 00:03:03]} 3. Bb2 {[%clk 00:03:06]} Bg7
{[%clk 00:03:05]} 4. e3 {[%clk 00:03:08]} O-O {[%clk 00:03:05]} {[%emt
00:00:02]} 5. Qc1 {[%clk 00:03:09]} a5 {[%clk 00:03:04]} {[%emt 00:00:02]} 6.
a3 {[%clk 00:03:10]} d6 {[%clk 00:03:03]} {[%emt 00:00:03]} 7. h3 {[%clk
00:03:11]} e5 {[%clk 00:03:04]} {[%emt 00:00:02]} 8. d3 {[%clk 00:03:12]} Nc6
{[%clk 00:03:05]} 9. Nbd2 {[%clk 00:03:08]} {[%emt 00:00:05]} Re8 {[%clk
00:03:06]} {[%emt 00:00:02]} 10. g4 {[%clk 00:03:09]} h5 {[%clk 00:03:03]}
{[%emt 00:00:05]} 11. g5 {[%clk 00:03:10]} {[%emt 00:00:02]} Nd7 {[%clk
00:03:03]} {[%emt 00:00:02]} 12. Bg2 {[%clk 00:03:10]} {[%emt 00:00:02]} Nc5
{[%clk 00:02:58]} {[%emt 00:00:07]} 13. h4 {[%clk 00:03:10]} {[%emt 00:00:03]}
Ne6 {[%clk 00:02:58]} {[%emt 00:00:02]} 14. c4 {[%clk 00:03:06]} {[%emt
00:00:06]} a4 {[%clk 00:02:49]} {[%emt 00:00:11]} 15. b4 {[%clk 00:03:06]}
{[%emt 00:00:02]} Ne7 {[%clk 00:02:48]} {[%emt 00:00:04]} 16. Qc2 {[%clk
00:03:03]} {[%emt 00:00:03]} Nf5 {[%clk 00:02:44]} {[%emt 00:00:06]} 17. Ne4
{[%clk 00:02:49]} {[%emt 00:00:15]} Bd7 {[%clk 00:02:30]} {[%emt 00:00:17]} 18.
Bh3 {[%clk 00:02:43]} {[%emt 00:00:07]} Nf8 {[%clk 00:02:11]} {[%emt 00:00:21]}
19. b5 {[%clk 00:02:01]} {[%emt 00:00:45]} Qc8 {[%clk 00:02:05]} {[%emt
00:00:09]} 20. Bxf5 {[%clk 00:01:56]} {[%emt 00:00:06]} Bxf5 {[%clk 00:02:03]}
{[%emt 00:00:04]} 21. Nc3 {[%clk 00:01:50]} {[%emt 00:00:08]} Bg4 {[%clk
00:02:00]} {[%emt 00:00:06]} 22. Nh2 {[%clk 00:01:44]} {[%emt 00:00:06]} Bf5
{[%clk 00:01:54]} {[%emt 00:00:09]} 23. O-O-O {[%clk 00:01:41]} {[%emt
00:00:05]} Ne6 {[%clk 00:01:50]} {[%emt 00:00:05]} 24. Nf1 {[%clk 00:01:33]}
{[%emt 00:00:10]} Nc5 {[%clk 00:01:49]} {[%emt 00:00:04]} 25. Ng3 {[%clk
00:01:33]} {[%emt 00:00:02]} Bg4 {[%clk 00:01:30]} {[%emt 00:00:20]} 26. Rd2
{[%clk 00:01:28]} {[%emt 00:00:08]} Nb3+ {[%clk 00:01:31]} {[%emt 00:00:01]} 27.
Kb1 {[%clk 00:01:28]} Nxd2+ {[%clk 00:01:31]} {[%emt 00:00:03]} 28. Qxd2 {[%clk
00:01:28]} {[%emt 00:00:02]} Bf3 {[%clk 00:01:31]} {[%emt 00:00:02]} 29. Rg1
{[%clk 00:01:30]} Qh3 {[%clk 00:01:30]} {[%emt 00:00:04]} 30. Nge4 {[%clk
00:01:14]} {[%emt 00:00:17]} Qxh4 {[%clk 00:01:20]} {[%emt 00:00:12]} 31. Rg3
{[%clk 00:01:02]} {[%emt 00:00:13]} Qh1+ {[%clk 00:01:19]} {[%emt 00:00:03]} 32.
Ka2 {[%clk 00:01:03]} {[%emt 00:00:02]} h4 {[%clk 00:01:08]} {[%emt 00:00:13]}
33. Rxf3 {[%clk 00:00:49]} {[%emt 00:00:16]} Qxf3 {[%clk 00:01:08]} {[%emt
00:00:01]} 34. Nd5 {[%clk 00:00:50]} {[%emt 00:00:01]} h3 {[%clk 00:01:00]}
{[%emt 00:00:11]} 35. Qe1 {[%clk 00:00:38]} {[%emt 00:00:14]} h2 {[%clk
00:00:53]} {[%emt 00:00:10]} 36. Nxc7 {[%clk 00:00:38]} {[%emt 00:00:02]} h1=Q
{[%clk 00:00:51]} {[%emt 00:00:04]} 37. Qc3 {[%clk 00:00:25]} {[%emt 00:00:15]}
Qfd1 {[%clk 00:00:47]} {[%emt 00:00:07]} 38. Nd2 {[%emt 00:00:08]} Qhe1 {[%clk
00:00:41]} 39. Nxe8 {[%clk 00:00:10]} {[%emt 00:00:19]} Rxe8 {[%clk 00:00:42]}
40. Qb4 {[%clk 00:00:06]} {[%emt 00:00:05]} Qexd2 {[%clk 00:00:39]} {[%emt
00:00:04]} 41. Qxd6 {[%clk 00:00:07]} {[%emt 00:00:02]} Qb3+ {[%clk 00:00:40]}
{[%emt 00:00:02]} 0-1

[Event "Nordstansblixten 2025"]
[Site "Nordstan, Göteborg, Sweden"]
[Date "2025.05.10"]
[Round "7.4"]
[White "Kadunic, Admir"]
[Black "Ring, Sami"]
[Result "0-1"]
[TimeControl "3 minutes + 2 seconds per move from move one"]
[WhiteFideId "1773542"]
[BlackFideId "1785869"]
[WhiteElo "2109"]
[BlackElo "1712"]

1. d4 {[%clk 00:03:03]} d5 {[%clk 00:03:03]} {[%emt 00:00:02]} 2. Bg5 {[%clk
00:03:04]} h6 {[%clk 00:03:03]} {[%emt 00:00:02]} 3. Bh4 {[%clk 00:03:05]} c6
{[%clk 00:03:04]} {[%emt 00:00:01]} 4. Nd2 {[%clk 00:03:05]} {[%emt 00:00:02]}
Bf5 {[%clk 00:02:59]} {[%emt 00:00:08]} 5. e3 {[%clk 00:03:05]} {[%emt
00:00:02]} Nd7 {[%clk 00:02:58]} {[%emt 00:00:02]} 6. f4 {[%clk 00:03:05]}
{[%emt 00:00:02]} Ngf6 {[%clk 00:02:56]} {[%emt 00:00:04]} 7. Ngf3 {[%clk
00:03:05]} {[%emt 00:00:02]} e6 {[%clk 00:02:55]} {[%emt 00:00:03]} 8. Be2
{[%clk 00:03:03]} {[%emt 00:00:04]} Be7 {[%clk 00:02:55]} {[%emt 00:00:02]} 9.
O-O {[%clk 00:03:04]} {[%emt 00:00:02]} O-O {[%clk 00:02:50]} {[%emt 00:00:08]}
10. Ne5 {[%clk 00:03:01]} {[%emt 00:00:04]} a5 {[%clk 00:02:49]} {[%emt
00:00:04]} 11. c3 {[%clk 00:02:57]} {[%emt 00:00:05]} Nh7 {[%clk 00:02:44]}
{[%emt 00:00:06]} 12. Bg3 {[%clk 00:02:53]} {[%emt 00:00:07]} Nhf6 {[%clk
00:02:42]} {[%emt 00:00:03]} 13. Qb3 {[%clk 00:02:53]} {[%emt 00:00:02]} Rb8
{[%clk 00:02:33]} {[%emt 00:00:12]} 14. c4 {[%clk 00:02:51]} {[%emt 00:00:04]}
Ne4 {[%clk 00:02:27]} {[%emt 00:00:07]} 15. Nxe4 {[%clk 00:02:47]} {[%emt
00:00:07]} Bxe4 {[%clk 00:02:27]} {[%emt 00:00:02]} 16. Rac1 {[%clk 00:02:37]}
{[%emt 00:00:12]} Nf6 {[%clk 00:02:11]} {[%emt 00:00:18]} 17. Rc3 {[%clk
00:02:24]} {[%emt 00:00:15]} Bb4 {[%clk 00:02:03]} {[%emt 00:00:10]} 18. Rcc1
{[%clk 00:02:21]} {[%emt 00:00:05]} Be7 {[%clk 00:01:49]} {[%emt 00:00:16]} 19.
a3 {[%clk 00:02:22]} {[%emt 00:00:02]} Nh7 {[%clk 00:01:38]} {[%emt 00:00:13]}
20. Be1 {[%clk 00:02:00]} {[%emt 00:00:25]} Qc7 {[%clk 00:01:29]} {[%emt
00:00:10]} 21. Qa4 {[%clk 00:01:51]} {[%emt 00:00:11]} Ra8 {[%clk 00:01:24]}
{[%emt 00:00:06]} 22. Bd2 {[%clk 00:01:47]} {[%emt 00:00:07]} Rfb8 {[%clk
00:01:24]} {[%emt 00:00:01]} 23. Rc3 {[%emt 00:00:16]} Nf8 {[%clk 00:01:22]} 24.
Rfc1 {[%clk 00:01:32]} {[%emt 00:00:07]} f6 {[%clk 00:01:19]} {[%emt 00:00:05]}
25. Nf3 {[%clk 00:01:31]} {[%emt 00:00:04]} Rc8 {[%clk 00:01:12]} {[%emt
00:00:09]} 26. Bd3 {[%clk 00:01:26]} {[%emt 00:00:06]} f5 {[%clk 00:01:09]}
{[%emt 00:00:05]} 27. Bxe4 {[%clk 00:01:25]} {[%emt 00:00:04]} fxe4 {[%clk
00:01:08]} {[%emt 00:00:02]} 28. Ne5 {[%clk 00:01:26]} Bf6 {[%clk 00:01:01]}
{[%emt 00:00:08]} 29. cxd5 {[%clk 00:01:23]} {[%emt 00:00:07]} exd5 {[%clk
00:01:01]} {[%emt 00:00:01]} 30. Qb3 {[%clk 00:01:13]} {[%emt 00:00:12]} Rd8
{[%clk 00:00:55]} {[%emt 00:00:08]} 31. R3c2 {[%clk 00:01:08]} {[%emt
00:00:07]} Bxe5 {[%clk 00:00:55]} {[%emt 00:00:02]} 32. fxe5 {[%clk 00:01:09]}
Ne6 {[%clk 00:00:56]} 33. Be1 {[%clk 00:01:01]} {[%emt 00:00:10]} Rd7 {[%clk
00:00:53]} {[%emt 00:00:05]} 34. Qc3 {[%clk 00:00:58]} {[%emt 00:00:05]} a4
{[%clk 00:00:50]} {[%emt 00:00:06]} 35. Qd2 {[%clk 00:00:59]} Rf8 {[%clk
00:00:50]} {[%emt 00:00:01]} 36. Qe2 {[%clk 00:00:59]} {[%emt 00:00:02]} Rdf7
{[%clk 00:00:49]} {[%emt 00:00:03]} 37. Bg3 {[%clk 00:00:55]} {[%emt 00:00:07]}
Qd7 {[%clk 00:00:45]} {[%emt 00:00:05]} 38. Qg4 {[%clk 00:00:51]} {[%emt
00:00:05]} Qe7 {[%clk 00:00:36]} {[%emt 00:00:12]} 39. Bh4 {[%clk 00:00:45]}
{[%emt 00:00:08]} Ng5 {[%clk 00:00:32]} {[%emt 00:00:06]} 40. h3 {[%clk
00:00:32]} {[%emt 00:00:15]} Kh7 {[%clk 00:00:31]} {[%emt 00:00:02]} 41. Kh2
{[%clk 00:00:28]} {[%emt 00:00:07]} Qd8 {[%clk 00:00:27]} {[%emt 00:00:06]} 42.
Rc5 {[%clk 00:00:28]} {[%emt 00:00:02]} Qb6 {[%clk 00:00:24]} {[%emt 00:00:03]}
43. R1c2 {[%clk 00:00:30]} {[%emt 00:00:03]} Qd8 {[%clk 00:00:24]} {[%emt
00:00:02]} 44. R2c3 {[%clk 00:00:28]} {[%emt 00:00:03]} Qe7 {[%clk 00:00:24]}
{[%emt 00:00:01]} 45. Ra5 {[%clk 00:00:29]} {[%emt 00:00:02]} Rf1 {[%clk
00:00:21]} {[%emt 00:00:04]} 46. Bxg5 {[%clk 00:00:25]} {[%emt 00:00:06]} Qxg5
{[%clk 00:00:21]} {[%emt 00:00:03]} 47. Qxg5 {[%clk 00:00:26]} {[%emt
00:00:01]} hxg5 {[%clk 00:00:22]} {[%emt 00:00:01]} 48. Rxa4 {[%clk 00:00:27]}
{[%emt 00:00:02]} Rb1 {[%clk 00:00:22]} 49. Rb3 {[%emt 00:00:02]} Rff1 {[%clk
00:00:22]} 50. Kg3 {[%clk 00:00:29]} Kh6 {[%clk 00:00:23]} {[%emt 00:00:02]} 51.
Rxb7 {[%clk 00:00:30]} Rbe1 {[%clk 00:00:20]} {[%emt 00:00:05]} 52. Rb3 {[%clk
00:00:25]} {[%emt 00:00:07]} Re2 {[%clk 00:00:21]} {[%emt 00:00:02]} 53. Ra8
{[%clk 00:00:20]} {[%emt 00:00:06]} Rg1 {[%clk 00:00:20]} {[%emt 00:00:02]} 54.
Rh8+ {[%clk 00:00:21]} {[%emt 00:00:02]} Kg6 {[%clk 00:00:22]} 55. h4 {[%clk
00:00:14]} {[%emt 00:00:09]} Rgxg2+ {[%clk 00:00:22]} {[%emt 00:00:01]} 56. Kh3
{[%clk 00:00:16]} Rh2+ {[%clk 00:00:23]} 57. Kg3 {[%clk 00:00:16]} Rhg2+ {[%clk
00:00:24]} {[%emt 00:00:02]} 58. Kh3 {[%clk 00:00:18]} Rh2+ {[%clk 00:00:25]}
59. Kg3 {[%clk 00:00:19]} Reg2# {[%clk 00:00:20]} 0-1